[Event "Kragero Resort B 2020"]
[Site "Kragero"]
[Date "2020.02.20"]
[Round "3.10"]
[White "Sejersted, Adrian"]
[Black "Myagmarsuren, Evsuld"]
[Result "1-0"]
[ECO "D00"]
[WhiteElo "1788"]
[BlackElo "1497"]
[Annotator "NA RC"]
[PlyCount "117"]
[EventDate "2020.02.19"]
[EventType "swiss"]
[EventCountry "NOR"]
[SourceTitle "playchess.com"]
[Source "ChessBase"]
[SourceQuality "1"]
[TimeControl "5400+30"]

1. d4 {[%emt 0:20:46]} d5 {[%emt 0:00:14]} 2. Nc3 {[%emt 0:01:01]} e6 {[%emt 0:00:56]} 3. Bf4 {[%emt 0:00:14]} c5 {[%emt 0:00:08]} 4. e3 {[%emt 0:00:15]} Nc6 {[%emt 0:00:51]} 5. Nb5 {[%emt 0:00:00]} e5 {[%emt 0:00:00]} 6. dxe5 {[%emt 0:00:00]} Be6 {[%emt 0:00:00]} 7. Nf3 {[%emt 0:00:00]} a6 {[%emt 0:00:00]} 8. Nd6+ {[%emt 0:00:00]} Bxd6 {[%emt 0:00:00]} 9. exd6 {[%emt 0:00:00]} Nf6 {[%emt 0:00:39]} 10. Ne5 {[%emt 0:00:00]} Nxe5 {[%emt 0:08:54]} 11. Bxe5 {[%emt 0:00:00]} O-O {[%emt 0:00:11]} 12. Bd3 {[%emt 0:02:35]} Re8 {[%emt 0:05:33]} 13. O-O {[%emt 0:07:51]} Bd7 {[%emt 0:03:19]} 14. Bg3 {[%emt 0:05:17]} b5 {[%emt 0:09:16]} 15. b3 {[%emt 0:04:07]} c4 {[%emt 0:00:24]} 16. Be2 {[%emt 0:01:52]} Bc6 {[%emt 0:01:56]} 17. Bf3 {[%emt 0:01:10]} Qd7 {[%emt 0:01:44]} 18. Qd2 {[%emt 0:02:26]} Ne4 {[%emt 0:00:23]} 19. Bxe4 {[%emt 0:00:05]} Rxe4 {[%emt 0:00:44]} 20. Rfd1 {[%emt 0:07:31]} Rae8 {[%emt 0:00:46]} 21. Qc3 {[%emt 0:01:14]} Bb7 {[%emt 0:01:14]} 22. Rd4 {[%emt 0:00:59]} Rxd4 23. Qxd4 {[%emt 0:00:00]} Qc6 {[%emt 0:01:02]} 24. f3 {[%emt 0:06:35]} Qd7 {[%emt 0:03:59]} 25. Re1 {[%emt 0:06:01]} Kf8 {[%emt 0:03:58]} 26. b4 {[%emt 0:03:52]} Bc6 {[%emt 0:00:53]} 27. c3 {[%emt 0:00:39]} Bb7 {[%emt 0:00:25]} 28. Qh4 {[%emt 0:02:37]} h6 {[%emt 0:00:54]} 29. e4 {[%emt 0:03:09]} Bc6 {[%emt 0:02:02]} 30. e5 {[%emt 0:00:18]} Qe6 {[%emt 0:03:08]} 31. Bf2 {[%emt 0:01:51]} Bd7 {[%emt 0:04:03]} 32. Bc5 {[%emt 0:03:00]} g5 {[%emt 0:02:05]} 33. Qd4 {[%emt 0:00:34]} Kg8 {[%emt 0:01:35]} 34. Qf2 {[%emt 0:04:12]} f6 {[%emt 0:00:54]} 35. Bd4 {[%emt 0:00:44]} fxe5 {[%emt 0:02:56]} 36. Bxe5 {[%emt 0:00:35]} Qf5 {[%emt 0:02:27]} 37. Bg3 {[%emt 0:03:21]} Rxe1+ {[%emt 0:06:19]} 38. Qxe1 {[%emt 0:00:01]} Qe6 {[%emt 0:00:49]} 39. Qxe6+ {[%emt 0:01:00]} Bxe6 {[%emt 0:00:11]} 40. Be5 {[%emt 0:01:48]} Kf7 {[%emt 0:00:29]} 41. Kf2 {[%emt 0:00:21]} Bd7 {[%emt 0:00:13]} 42. Ke3 {[%emt 0:00:11]} h5 {[%emt 0:00:20]} 43. Kd4 {[%emt 0:00:33]} Ke6 {[%emt 0:00:04]} 44. g3 {[%emt 0:00:41]} Bc8 {[%emt 0:01:14]} 45. f4 {[%emt 0:00:42]} gxf4 {[%emt 0:04:32]} 46. gxf4 {[%emt 0:00:01]} h4 {[%emt 0:06:09]} 47. Kc5 {[%emt 0:00:21]} h3 {[%emt 0:06:18]} 48. Kc6 {[%emt 0:00:37]} Bd7+ {[%emt 0:02:59]} 49. Kc7 {[%emt 0:00:45]} Be8 {[%emt 0:00:40]} 50. Bd4 {[%emt 0:00:19]} Kf5 {[%emt 0:04:22]} 51. d7 {[%emt 0:00:19]} Bxd7 {[%emt 0:00:12]} 52. Kxd7 {[%emt 0:00:01]} Kxf4 {[%emt 0:00:10]} 53. Kc6 {[%emt 0:00:26]} Kf3 {[%emt 0:00:14]} 54. Kxd5 {[%emt 0:00:15]} Kg2 {[%emt 0:00:10]} 55. Be5 {[%emt 0:00:31]} Kf3 {[%emt 0:00:10]} 56. Kc6 {[%emt 0:00:13]} Ke4 {[%emt 0:00:23]} 57. Bd4 {[%emt 0:00:06]} Kd3 {[%emt 0:00:08]} 58. Kb6 {[%emt 0:00:11]} Kc2 {[%emt 0:00:19]} 59. Kxa6 {[%emt 0:00:13]} 1-0

[Event "Kragero Resort B 2020"]
[Site "Kragero"]
[Date "2020.02.20"]
[Round "3.11"]
[White "Aasen, Joakim"]
[Black "Haug, Havard"]
[Result "1-0"]
[ECO "A59"]
[WhiteElo "1745"]
[BlackElo "1626"]
[Annotator "NA RC"]
[PlyCount "26"]
[EventDate "2020.02.19"]
[EventType "swiss"]
[EventCountry "NOR"]
[SourceTitle "playchess.com"]
[Source "ChessBase"]
[SourceQuality "1"]
[TimeControl "5400+30"]

1. d4 {[%emt 0:00:00]} Nf6 {[%emt 0:00:00]} 2. c4 {[%emt 0:00:00]} c5 {[%emt 0:00:00]} 3. d5 {[%emt 0:00:00]} b5 {[%emt 0:00:00]} 4. cxb5 {[%emt 0:00:12]} a6 {[%emt 0:00:05]} 5. bxa6 {[%emt 0:00:22]} g6 {[%emt 0:02:09]} 6. Nc3 {[%emt 0:01:12]} Bxa6 {[%emt 0:02:11]} 7. e4 {[%emt 0:01:05]} Bxf1 {[%emt 0:00:08]} 8. Kxf1 {[%emt 0:00:00]} d6 {[%emt 0:00:37]} 9. g3 {[%emt 0:00:00]} Bg7 {[%emt 0:00:08]} 10. Kg2 {[%emt 0:00:00]} O-O {[%emt 0:00:08]} 11. Nf3 {[%emt 0:00:25]} Nbd7 {[%emt 0:00:11]} 12. a4 {[%emt 0:00:29]} Qa5 {[%emt 0:00:49]} 13. Qc2 {[%emt 0:03:49]} Ng4 {[%emt 0:01:05]} 1-0

[Event "Kragero Resort B 2020"]
[Site "Kragero"]
[Date "2020.02.20"]
[Round "3.12"]
[White "Aasen, Fredrik"]
[Black "Olsen, William Alexander"]
[Result "0-1"]
[ECO "C55"]
[WhiteElo "1625"]
[BlackElo "1862"]
[Annotator "NA RC"]
[PlyCount "102"]
[EventDate "2020.02.19"]
[EventType "swiss"]
[EventCountry "NOR"]
[SourceTitle "playchess.com"]
[Source "ChessBase"]
[SourceQuality "1"]
[TimeControl "5400+30"]

1. e4 {[%emt 0:00:00]} e5 {[%emt 0:00:00]} 2. Nf3 {[%emt 0:00:00]} Nc6 {[%emt 0:00:00]} 3. Bc4 {[%emt 0:00:00]} Nf6 {[%emt 0:00:00]} 4. d3 {[%emt 0:00:00]} Be7 {[%emt 0:00:00]} 5. c3 {[%emt 0:00:21]} d6 {[%emt 0:00:02]} 6. O-O {[%emt 0:00:32]} O-O {[%emt 0:00:58]} 7. h3 {[%emt 0:01:26]} Na5 {[%emt 0:00:45]} 8. Bb5 {[%emt 0:02:08]} a6 {[%emt 0:00:58]} 9. Ba4 {[%emt 0:01:10]} b5 {[%emt 0:00:09]} 10. Bc2 {[%emt 0:00:42]} c5 {[%emt 0:00:15] C55: Two Knights: 4 d3, 4 d4 exd4 5 e5 and Max Lange Attack.} 11. Be3 {[%emt 0:10:14]} Qc7 {[%emt 0:05:00]} 12. Nbd2 {[%emt 0:06:39]} Bd7 {[%emt 0:02:40]} 13. Re1 {[%emt 0:05:00]} Rad8 {[%emt 0:01:31] [#]} 14. Bg5 $146 {[%emt 0:03:23]} ({Predecessor:} 14. Qe2 Rfe8 15. Rac1 d5 16. Bb1 dxe4 17. dxe4 c4 18. Nf1 Nb7 19. b4 cxb3 20. axb3 {0-1 (66) Kovalenko,I (2647)-Kelires,A (2510) Sitges 2019}) 14... Nc6 {[%emt 0:08:53]} 15. Bxf6 {[%emt 0:02:37]} Bxf6 {[%emt 0:00:17]} 16. Nf1 {[%emt 0:03:55]} g6 {[%emt 0:01:53]} 17. Ne3 {[%emt 0:03:59]} Ne7 {[%emt 0:00:22]} 18. Bb3 {[%emt 0:03:26]} Bc6 {[%emt 0:03:54]} 19. Qe2 {[%emt 0:07:13]} Bg7 {[%emt 0:04:19]} 20. Rad1 {[%emt 0:08:12]} d5 {[%emt 0:04:59]} 21. Nxd5 {[%emt 0:05:07]} Nxd5 {[%emt 0:00:10]} 22. exd5 {[%emt 0:00:31]} Bxd5 {[%emt 0:00:05]} 23. Bxd5 {[%emt 0:00:50]} Rxd5 {[%emt 0:00:08]} 24. Qe3 {[%emt 0:04:25]} Rfd8 {[%emt 0:02:57]} 25. Rd2 {[%emt 0:02:53]} f6 {[%emt 0:04:23]} 26. Red1 {[%emt 0:02:53]} (26. d4 $11) 26... b4 {[%emt 0:06:24]} (26... f5 $15) 27. c4 {[%emt 0:03:48]} (27. cxb4 $11 cxb4 28. d4) 27... R5d6 {[%emt 0:00:16]} 28. Ne1 {[%emt 0:04:55]} h5 {[%emt 0:01:48]} 29. Nc2 {[%emt 0:04:07]} Kh7 {[%emt 0:01:18]} 30. Qf3 {[%emt 0:02:55]} Bh6 {[%emt 0:00:34]} 31. Ne3 {[%emt 0:01:37]} Qd7 {[%emt 0:01:16]} 32. Nd5 {[%emt 0:04:19]} Rxd5 {[%emt 0:01:30]} 33. cxd5 {[%emt 0:01:56]} Bxd2 {[%emt 0:00:07]} 34. Rxd2 {[%emt 0:00:19]} Kg7 $17 {[%emt 0:00:25]} 35. Kf1 {[%emt 0:03:15]} Qxd5 {[%emt 0:00:05]} 36. Qxd5 {[%emt 0:00:06]} Rxd5 {[%emt 0:00:05]} 37. Ke2 {[%emt 0:00:18]} Kf7 {[%emt 0:00:18]} 38. Ke3 {[%emt 0:00:38]} Ke6 {[%emt 0:00:09]} 39. Rc2 {[%emt 0:01:01]} Kd6 {[%emt 0:00:44]} 40. a3 {[%emt 0:01:23]} Rd4 {[%emt 0:02:24]} 41. Rc4 {[%emt 0:01:25]} Rxc4 {[%emt 0:01:07]} 42. dxc4 {[%emt 0:00:08]} bxa3 {[%emt 0:00:05]} 43. bxa3 {[%emt 0:00:13]} f5 {[%emt 0:00:09]} 44. a4 {[%emt 0:01:05]} Kc6 {[%emt 0:00:06]} 45. a5 {[%emt 0:00:17]} g5 {[%emt 0:00:24]} 46. f3 {[%emt 0:00:45]} Kd6 {[%emt 0:00:29]} 47. g4 {[%emt 0:00:47]} hxg4 {[%emt 0:00:35]} 48. hxg4 {[%emt 0:00:23]} Ke6 {[%emt 0:00:23]} 49. Kd3 {[%emt 0:00:39]} e4+ {[%emt 0:00:45]} 50. fxe4 {[%emt 0:00:25]} fxg4 {[%emt 0:00:11]} 51. Ke3 {[%emt 0:00:11]} Ke5 {[%emt 0:00:03] Kd4+} 0-1

[Event "Kragero Resort B 2020"]
[Site "Kragero"]
[Date "2020.02.20"]
[Round "4.1"]
[White "Rynning, Rune Kleiven"]
[Black "Leonhardsen, Vebjorn Maanum"]
[Result "0-1"]
[ECO "B17"]
[WhiteElo "1625"]
[BlackElo "1845"]
[Annotator "NA RC"]
[PlyCount "116"]
[EventDate "2020.02.19"]
[EventType "swiss"]
[EventCountry "NOR"]
[SourceTitle "playchess.com"]
[Source "ChessBase"]
[SourceQuality "1"]
[TimeControl "5400+30"]

1. e4 {[%emt 0:00:00]} c6 {[%emt 0:00:00]} 2. d4 {[%emt 0:00:00]} d5 {[%emt 0:00:00]} 3. Nc3 {[%emt 0:00:00]} dxe4 {[%emt 0:00:18]} 4. Nxe4 {[%emt 0:00:00]} Nd7 {[%emt 0:00:26]} 5. Nf3 {[%emt 0:00:45]} Ngf6 {[%emt 0:00:07]} 6. Bd3 {[%emt 0:01:23]} Nxe4 {[%emt 0:00:22]} 7. Bxe4 {[%emt 0:00:11]} Nf6 {[%emt 0:00:06]} 8. Bd3 {[%emt 0:00:08]} Bg4 {[%emt 0:00:13]} 9. c3 {[%emt 0:01:56]} e6 {[%emt 0:02:36]} 10. h3 {[%emt 0:05:17]} Bh5 {[%emt 0:00:07]} 11. O-O {[%emt 0:02:13]} Be7 {[%emt 0:00:15]} 12. Qe2 {[%emt 0:04:35]} Qc7 {[%emt 0:00:44]} 13. Bg5 {[%emt 0:00:56]} O-O {[%emt 0:00:31]} 14. Rfe1 {[%emt 0:04:46]} Rfc8 {[%emt 0:05:06]} 15. b4 {[%emt 0:10:00]} a5 {[%emt 0:02:54]} 16. a3 {[%emt 0:00:16]} axb4 {[%emt 0:03:34]} 17. axb4 {[%emt 0:00:13]} Nd5 {[%emt 0:01:34]} 18. Bxe7 {[%emt 0:01:03]} Qxe7 {[%emt 0:00:16]} 19. g4 {[%emt 0:04:28]} Nf4 {[%emt 0:11:32]} 20. Qf1 {[%emt 0:00:14]} Bg6 {[%emt 0:01:27]} 21. Bxg6 {[%emt 0:01:03]} Nxg6 {[%emt 0:06:46]} 22. Ne5 {[%emt 0:06:15]} Nf4 {[%emt 0:01:42]} 23. Nd3 {[%emt 0:10:40]} Nd5 {[%emt 0:03:01]} 24. Rxa8 {[%emt 0:03:16]} Rxa8 {[%emt 0:00:16]} 25. Ra1 {[%emt 0:00:10]} Rxa1 {[%emt 0:09:18]} 26. Qxa1 {[%emt 0:00:09]} h5 {[%emt 0:02:34]} 27. Qc1 {[%emt 0:13:23]} hxg4 {[%emt 0:12:02]} 28. hxg4 {[%emt 0:00:55]} Qh4 {[%emt 0:00:38]} 29. g5 {[%emt 0:02:57]} Qg4+ {[%emt 0:02:33]} 30. Kf1 {[%emt 0:00:44]} Qf3 {[%emt 0:00:40]} 31. Qd2 {[%emt 0:01:25]} Qh1+ {[%emt 0:04:23]} 32. Ke2 {[%emt 0:00:11]} Qa1 {[%emt 0:02:19]} 33. c4 {[%emt 0:04:58]} Nb6 {[%emt 0:07:10]} 34. Qb2 {[%emt 0:07:32]} Qh1 {[%emt 0:01:48]} 35. Nc5 {[%emt 0:04:11]} Qh5+ {[%emt 0:02:13]} 36. Kd3 {[%emt 0:01:02]} Qxg5 {[%emt 0:00:50]} 37. Nxb7 {[%emt 0:00:29]} Qf5+ {[%emt 0:00:43]} 38. Ke2 {[%emt 0:01:16]} Qe4+ {[%emt 0:01:14]} 39. Kd1 {[%emt 0:02:41]} Nxc4 {[%emt 0:02:31]} 40. Qc3 {[%emt 0:01:14]} Nb6 {[%emt 0:08:27]} 41. Na5 {[%emt 0:01:17]} Na4 {[%emt 0:01:09]} 42. Qd2 {[%emt 0:01:38]} Qf3+ {[%emt 0:01:48]} 43. Kc2 {[%emt 0:00:27]} Qd5 {[%emt 0:00:45]} 44. Kd3 {[%emt 0:01:21]} c5 {[%emt 0:01:36]} 45. Qf4 {[%emt 0:01:49]} g6 {[%emt 0:02:31]} 46. Qb8+ {[%emt 0:02:55]} Kg7 {[%emt 0:00:06]} 47. bxc5 {[%emt 0:00:35]} Nxc5+ {[%emt 0:00:15]} 48. Ke3 {[%emt 0:00:24]} Qe4+ {[%emt 0:00:29]} 49. Kd2 {[%emt 0:00:14]} Qxd4+ {[%emt 0:00:07]} 50. Ke2 {[%emt 0:00:32]} Qd3+ {[%emt 0:00:21]} 51. Ke1 {[%emt 0:00:10]} Qc3+ {[%emt 0:00:38]} 52. Kf1 {[%emt 0:00:17]} Qxa5 {[%emt 0:00:28]} 53. Qe5+ {[%emt 0:00:07]} f6 {[%emt 0:00:11]} 54. Qd6 {[%emt 0:00:47]} Qa7 {[%emt 0:00:20]} 55. Kg2 {[%emt 0:00:34]} e5 {[%emt 0:01:04]} 56. Kf3 {[%emt 0:00:59]} Qb7+ {[%emt 0:00:32]} 57. Kg4 {[%emt 0:00:33]} Qe4+ {[%emt 0:01:13]} 58. Kg3 {[%emt 0:00:23]} Qd3+ {[%emt 0:00:08]} 0-1

[Event "Kragero Resort B 2020"]
[Site "Kragero"]
[Date "2020.02.20"]
[Round "4.2"]
[White "Seo, Jung Hyun"]
[Black "Solaas, Timian Martinius Man"]
[Result "1-0"]
[ECO "B38"]
[WhiteElo "1816"]
[BlackElo "1741"]
[Annotator "NA RC"]
[PlyCount "99"]
[EventDate "2020.02.19"]
[EventType "swiss"]
[EventCountry "NOR"]
[SourceTitle "playchess.com"]
[Source "ChessBase"]
[SourceQuality "1"]
[TimeControl "5400+30"]

1. e4 {[%emt 0:00:00]} c5 {[%emt 0:00:00]} 2. Nf3 {[%emt 0:00:00]} g6 {[%emt 0:00:00]} 3. d4 {[%emt 0:00:00]} cxd4 {[%emt 0:00:00]} 4. Nxd4 {[%emt 0:00:00]} Nc6 {[%emt 0:00:00]} 5. c4 {[%emt 0:00:00]} Bg7 {[%emt 0:00:21]} 6. Be3 {[%emt 0:01:52]} Nf6 {[%emt 0:00:18]} 7. Nc3 {[%emt 0:00:02]} O-O {[%emt 0:00:21]} 8. Be2 {[%emt 0:00:04]} d6 {[%emt 0:00:05]} 9. f3 {[%emt 0:00:05]} Nh5 {[%emt 0:00:06]} 10. Nxc6 {[%emt 0:03:05]} bxc6 {[%emt 0:00:13]} 11. Qd2 {[%emt 0:00:19]} Rb8 {[%emt 0:00:35]} 12. g4 {[%emt 0:16:23]} Qa5 {[%emt 0:08:53]} 13. Rc1 {[%emt 0:05:03]} Nf6 {[%emt 0:00:42]} 14. O-O {[%emt 0:06:15]} Be6 {[%emt 0:05:06]} 15. b3 {[%emt 0:01:06]} Rfd8 {[%emt 0:05:41]} 16. Rfd1 {[%emt 0:08:01]} Rd7 {[%emt 0:04:25]} 17. Rc2 {[%emt 0:23:33]} Rbd8 {[%emt 0:03:37]} 18. Nd5 {[%emt 0:03:29]} Qxd2 {[%emt 0:00:20]} 19. Nxf6+ {[%emt 0:00:02]} Bxf6 {[%emt 0:00:16]} 20. Rcxd2 {[%emt 0:00:02]} g5 {[%emt 0:04:43]} 21. e5 {[%emt 0:11:11]} Bxe5 {[%emt 0:05:48]} 22. Bxg5 {[%emt 0:00:09]} c5 {[%emt 0:03:34]} 23. f4 {[%emt 0:06:07]} Bd4+ {[%emt 0:02:18]} 24. Rxd4 {[%emt 0:00:13]} cxd4 {[%emt 0:00:09]} 25. f5 {[%emt 0:00:01]} Bxc4 {[%emt 0:11:07]} 26. Bxc4 {[%emt 0:00:22]} Kf8 {[%emt 0:09:53]} 27. Rxd4 {[%emt 0:00:33]} Rc7 {[%emt 0:00:58]} 28. a4 {[%emt 0:02:46]} Rc5 {[%emt 0:03:52]} 29. Re4 {[%emt 0:01:51]} Rd7 {[%emt 0:01:17]} 30. Be3 {[%emt 0:02:52]} Rc8 {[%emt 0:03:25]} 31. Rd4 {[%emt 0:00:53]} Rb8 {[%emt 0:01:41]} 32. Bh6+ {[%emt 0:00:41]} Kg8 {[%emt 0:00:12]} 33. g5 {[%emt 0:00:06]} d5 {[%emt 0:07:16]} 34. Rxd5 {[%emt 0:00:29]} Rxd5 {[%emt 0:00:01]} 35. Bxd5 {[%emt 0:00:07]} Rd8 {[%emt 0:00:11]} 36. Bc4 {[%emt 0:00:58]} Rd6 {[%emt 0:00:35]} 37. h4 {[%emt 0:00:09]} e6 {[%emt 0:00:12]} 38. fxe6 {[%emt 0:00:23]} fxe6 {[%emt 0:00:06]} 39. h5 {[%emt 0:00:52]} Kf7 {[%emt 0:00:15]} 40. Kf2 {[%emt 0:00:14]} Rd2+ {[%emt 0:01:27]} 41. Kg3 {[%emt 0:00:27]} Rd1 {[%emt 0:00:52]} 42. Kf4 {[%emt 0:00:39]} Rh1 {[%emt 0:01:08]} 43. Ke5 {[%emt 0:00:24]} Re1+ {[%emt 0:00:31]} 44. Kd6 {[%emt 0:00:43]} Rd1+ {[%emt 0:00:14]} 45. Kc5 {[%emt 0:00:52]} Rh1 {[%emt 0:00:36]} 46. Kd6 {[%emt 0:01:27]} Rd1+ {[%emt 0:00:09]} 47. Kc6 {[%emt 0:00:40]} Rd8 {[%emt 0:01:15]} 48. a5 {[%emt 0:01:02]} Rd4 {[%emt 0:03:26]} 49. a6 {[%emt 0:00:37]} Rd8 {[%emt 0:01:21]} 50. g6+ {[%emt 0:00:52]} 1-0

[Event "Kragero Resort B 2020"]
[Site "Kragero"]
[Date "2020.02.20"]
[Round "4.3"]
[White "Bernstein, Jonas August"]
[Black "Westrum, Kim Roger Hansen"]
[Result "1/2-1/2"]
[ECO "A89"]
[WhiteElo "1798"]
[BlackElo "1809"]
[Annotator "NA RC"]
[PlyCount "64"]
[EventDate "2020.02.19"]
[EventType "swiss"]
[EventCountry "NOR"]
[SourceTitle "playchess.com"]
[Source "ChessBase"]
[SourceQuality "1"]
[TimeControl "5400+30"]

1. c4 {[%emt 0:07:02]} f5 {[%emt 0:00:00]} 2. Nc3 {[%emt 0:01:36]} Nf6 {[%emt 0:00:00]} 3. d4 {[%emt 0:00:18]} e6 {[%emt 0:01:44]} 4. g3 {[%emt 0:10:20]} g6 {[%emt 0:01:52]} 5. Bg2 {[%emt 0:00:19]} Bg7 {[%emt 0:00:30]} 6. Nf3 {[%emt 0:02:47]} d6 {[%emt 0:01:13]} 7. O-O {[%emt 0:02:32]} O-O {[%emt 0:00:35]} 8. Qc2 {[%emt 0:02:27]} Nc6 {[%emt 0:02:01]} 9. d5 {[%emt 0:14:07]} Ne5 {[%emt 0:01:57]} 10. dxe6 {[%emt 0:04:25]} Nxf3+ {[%emt 0:04:29]} 11. Bxf3 {[%emt 0:01:22]} c6 {[%emt 0:00:14]} 12. Bf4 {[%emt 0:03:34]} Bxe6 {[%emt 0:24:01]} 13. Rad1 {[%emt 0:02:06]} Ne8 {[%emt 0:00:37]} 14. b3 {[%emt 0:17:02]} Qa5 {[%emt 0:01:44]} 15. Na4 {[%emt 0:05:28]} Rd8 {[%emt 0:08:07]} 16. Bd2 {[%emt 0:02:29]} Qc7 {[%emt 0:02:21]} 17. Bf4 {[%emt 0:04:50]} Be5 {[%emt 0:10:37]} 18. Nc5 {[%emt 0:06:13]} Bc8 {[%emt 0:00:48]} 19. Nd3 {[%emt 0:01:33]} Ng7 {[%emt 0:02:23]} 20. Nxe5 {[%emt 0:02:05]} dxe5 {[%emt 0:00:13]} 21. Bg5 {[%emt 0:00:27]} Rxd1 {[%emt 0:03:52]} 22. Rxd1 {[%emt 0:00:04]} Ne6 {[%emt 0:00:12]} 23. Bc1 {[%emt 0:03:04]} Nd4 {[%emt 0:04:20]} 24. Qd2 {[%emt 0:04:16]} Rd8 {[%emt 0:01:50]} 25. Kf1 {[%emt 0:00:25]} Rd7 {[%emt 0:06:28]} 26. Qg5 {[%emt 0:00:46]} Nxf3 {[%emt 0:01:05]} 27. Rxd7 {[%emt 0:00:13]} Nxh2+ {[%emt 0:00:07]} 28. Kg2 {[%emt 0:00:39]} Qxd7 {[%emt 0:09:51]} 29. Kxh2 {[%emt 0:00:11]} f4 {[%emt 0:01:27]} 30. Qxe5 {[%emt 0:01:32]} fxg3+ {[%emt 0:01:40]} 31. Qxg3 {[%emt 0:00:28]} Qg4 {[%emt 0:00:31]} 32. Qxg4 {[%emt 0:00:32]} Bxg4 {[%emt 0:00:03]} 1/2-1/2

[Event "Kragero Resort B 2020"]
[Site "Kragero"]
[Date "2020.02.20"]
[Round "4.4"]
[White "Aasen, Kjetil Myrlid"]
[Black "Sejersted, Adrian"]
[Result "1-0"]
[ECO "B01"]
[WhiteElo "1892"]
[BlackElo "1788"]
[Annotator "NA RC"]
[PlyCount "123"]
[EventDate "2020.02.19"]
[EventType "swiss"]
[EventCountry "NOR"]
[SourceTitle "playchess.com"]
[Source "ChessBase"]
[SourceQuality "1"]
[TimeControl "5400+30"]

1. e4 {[%emt 0:00:00]} d5 {[%emt 0:00:00]} 2. exd5 Qxd5 {[%emt 0:00:00]} 3. Nc3 {[%emt 0:00:16]} Qd8 {[%emt 0:00:00]} 4. Bc4 {[%emt 0:00:56]} Nf6 {[%emt 0:00:00]} 5. Nf3 {[%emt 0:02:11]} a6 {[%emt 0:00:01]} 6. a4 {[%emt 0:01:38]} Nc6 {[%emt 0:00:07]} 7. O-O {[%emt 0:04:02]} e6 {[%emt 0:00:08]} 8. d4 {[%emt 0:03:03]} Be7 {[%emt 0:00:34]} 9. Re1 {[%emt 0:03:51]} O-O {[%emt 0:00:21]} 10. h3 {[%emt 0:01:04]} h6 {[%emt 0:01:48]} 11. Bf4 {[%emt 0:03:41]} Nb4 {[%emt 0:00:40]} 12. Ne4 {[%emt 0:06:11]} Nxe4 {[%emt 0:03:14]} 13. Rxe4 {[%emt 0:00:08]} c5 {[%emt 0:01:36]} 14. c3 {[%emt 0:04:26]} Nc6 {[%emt 0:01:08]} 15. Ne5 {[%emt 0:17:45]} cxd4 {[%emt 0:01:40]} 16. Nxc6 {[%emt 0:01:52]} bxc6 {[%emt 0:00:21]} 17. Qxd4 {[%emt 0:07:59]} c5 {[%emt 0:08:44]} 18. Qxd8 {[%emt 0:08:01]} Rxd8 {[%emt 0:00:21]} 19. Kf1 {[%emt 0:06:42]} Bb7 {[%emt 0:00:20]} 20. Ree1 {[%emt 0:01:22]} g5 {[%emt 0:06:44]} 21. Be3 {[%emt 0:05:25]} a5 {[%emt 0:04:49]} 22. Rad1 {[%emt 0:00:31]} Bd5 {[%emt 0:09:16]} 23. Bb5 {[%emt 0:01:36]} Bb3 {[%emt 0:02:48]} 24. Rxd8+ {[%emt 0:00:22]} Rxd8 {[%emt 0:00:18]} 25. c4 {[%emt 0:01:28]} f5 {[%emt 0:06:00]} 26. Ke2 {[%emt 0:01:10]} f4 {[%emt 0:02:32]} 27. Bd2 {[%emt 0:00:07]} Rd4 {[%emt 0:09:17]} 28. Rc1 {[%emt 0:02:23]} Bd8 {[%emt 0:02:40]} 29. Rc3 {[%emt 0:04:25]} Ba2 {[%emt 0:00:39]} 30. Rd3 {[%emt 0:00:02]} Bb1 {[%emt 0:03:13]} 31. Rxd4 {[%emt 0:02:35]} cxd4 {[%emt 0:00:18]} 32. c5 {[%emt 0:02:14]} Be4 {[%emt 0:03:50]} 33. f3 {[%emt 0:00:49]} Ba8 {[%emt 0:03:27]} 34. c6 {[%emt 0:02:03]} Kf7 {[%emt 0:01:05]} 35. Kd3 {[%emt 0:00:19]} e5 {[%emt 0:00:27]} 36. Kc4 {[%emt 0:02:02]} Ke6 {[%emt 0:01:23]} 37. Kc5 {[%emt 0:02:06]} h5 {[%emt 0:09:42]} 38. Ba6 {[%emt 0:00:43]} g4 {[%emt 0:00:58]} 39. Bb7 {[%emt 0:00:53]} gxf3 {[%emt 0:01:23]} 40. gxf3 {[%emt 0:00:37]} e4 {[%emt 0:10:31]} 41. Bxf4 {[%emt 0:02:52]} e3 {[%emt 0:02:46]} 42. Ba6 {[%emt 0:00:28]} Kf5 {[%emt 0:00:50]} 43. c7 {[%emt 0:00:27]} Bxc7 {[%emt 0:00:50]} 44. Bxc7 {[%emt 0:00:02]} Bxf3 {[%emt 0:00:12]} 45. Kxd4 {[%emt 0:00:33]} e2 {[%emt 0:01:13]} 46. Bxa5 {[%emt 0:00:24]} Bg2 {[%emt 0:00:18]} 47. Ke3 {[%emt 0:00:43]} Ke5 {[%emt 0:01:10]} 48. Bxe2 {[%emt 0:00:43]} Bxh3 {[%emt 0:00:26]} 49. Bxh5 {[%emt 0:00:15]} Kd5 {[%emt 0:00:04]} 50. Kd3 {[%emt 0:00:29]} Kc5 {[%emt 0:00:51]} 51. b4+ {[%emt 0:00:05]} Kd5 {[%emt 0:00:11]} 52. Bf3+ {[%emt 0:00:08]} Kd6 {[%emt 0:00:06]} 53. Bb6 {[%emt 0:00:42]} Bf1+ {[%emt 0:00:40]} 54. Kd4 {[%emt 0:00:17]} Bh3 {[%emt 0:00:23]} 55. Bc5+ {[%emt 0:00:07]} Kc7 {[%emt 0:00:02]} 56. a5 {[%emt 0:00:28]} Bf1 {[%emt 0:00:12]} 57. Be4 {[%emt 0:00:18]} Bb5 {[%emt 0:00:30]} 58. Bd3 {[%emt 0:00:08]} Bd7 {[%emt 0:00:12]} 59. b5 {[%emt 0:00:17]} Be8 {[%emt 0:00:22]} 60. Bb6+ {[%emt 0:00:13]} Kb7 {[%emt 0:00:07]} 61. Be4+ {[%emt 0:00:15]} Kb8 {[%emt 0:00:04]} 62. Kc5 {[%emt 0:00:40]} 1-0